lending/lending_fUSD_20240111
["ID","MTS","AMOUNT","RATE_DAILY","PERIOD"]
[311273375,1705009835557,-150.0,0.0003689,2]
[311273376,1705009835566,-555.40112,0.00036898,4]
[311273377,1705009835576,-202.0,0.00036929,17]
[311273378,1705009835586,-777.40112,0.00036998,6]
[311273379,1705009835595,-1397.68747687,0.00037,7]
[311273380,1705009835605,-4102.82942095,0.00037,3]
[311273381,1705009835647,-897.17057905,0.00037,3]
[311273382,1705009835656,-491.82942095,0.00037,7]
[311273390,1705009837844,-311.82193235,0.00023999,2]
[311273391,1705009837854,-627.79404955,0.00023999,2]
[311273392,1705009837863,-2189.12236656,0.00024246,2]
[311273393,1705009837873,-5367.55298994,0.00024679,2]
[311273394,1705009837882,-235.48356349,0.00024679,2]
[311273395,1705009837891,-204.0,0.00028277,2]
[311273396,1705009837902,-346.46987124,0.00028476,2]
[311273397,1705009837913,-175.8936743,0.00037,7]
[311273398,1705009837923,-850.0,0.00037,3]
[311273399,1705009837934,-300.0,0.00037,38]
[311273400,1705009837945,-651.19,0.00037075,2]
[311273401,1705009837955,-555.40112,0.00037098,6]
[311273402,1705009837965,-7500.0,0.00037117,2]
[311273403,1705009837974,-209.0,0.00037117,2]
[311273404,1705009837983,-626.25,0.00037194,2]
[311273405,1705009837992,-777.40112,0.00037198,6]
[311273406,1705009838001,-191.14458152,0.00037288,2]
[311273407,1705009838012,-915.19,0.00037291,2]
[311273408,1705009838022,-555.40112,0.00037298,6]
[311273410,1705009838031,-777.40112,0.00037398,6]
[311273412,1705009838040,-1000.0,0.00037441,2]
[311273414,1705009838050,-153.84,0.00037443,2]
[311273415,1705009838060,-256.74226348,0.00037458,9]
[311273417,1705009838069,-2130.67260293,0.00037491,10]
[311273420,1705009838080,-1572.88240519,0.00037491,10]
[311273422,1705009838089,-555.40112,0.00037498,6]
[311273424,1705009838099,-5000.0,0.000375,25]
[311273426,1705009838108,-1490.0,0.000375,12]
[311273428,1705009838117,-500.0,0.000375,2]
[311273430,1705009838127,-943.0,0.000375,2]
[311273432,1705009838136,-500.0,0.00037561,120]
[311273434,1705009838144,-788.79125822,0.00037561,30]
[311273436,1705009838156,-1177.77663178,0.00037561,30]
[311273438,1705009838165,-1908.286752,0.00037561,30]
[311273440,1705009838174,-305.038799,0.00037561,30]
[311273442,1705009838183,-791.34395019,0.00037561,2]
[311273444,1705009838192,-777.40112,0.00037598,6]
[311273446,1705009838202,-164.43,0.0003761,2]
[311273448,1705009838212,-202.0,0.0003765,19]
[311273450,1705009838221,-555.40112,0.00037698,6]
[311273452,1705009838230,-14554.90172476,0.000377,3]
[311273455,1705009838242,-2790.43527524,0.000377,3]
[311273458,1705009838251,-3074.0,0.0003779,3]
[311273461,1705009838263,-1178.31839914,0.00037795,2]
[311273464,1705009838273,-777.40112,0.00037798,6]
[311273467,1705009838282,-1000.0,0.000378,2]
[311273470,1705009838291,-742.59,0.000378,3]
[311273473,1705009838300,-742.59,0.000378,3]
[311273475,1705009838309,-742.59,0.000378,3]
[311273477,1705009838319,-742.59,0.000378,3]
[311273479,1705009838329,-742.59,0.000378,3]
[311273481,1705009838338,-742.59,0.000378,3]
[311273483,1705009838347,-742.59,0.000378,3]
[311273485,1705009838357,-742.59,0.000378,3]
[311273487,1705009838366,-742.59,0.000378,3]
[311273489,1705009838375,-742.59,0.000378,3]
[311273491,1705009838384,-742.59,0.000378,3]
[311273493,1705009838393,-742.59,0.000378,3]
[311273495,1705009838402,-742.59,0.000378,3]
[311273497,1705009838411,-742.59,0.000378,3]
[311273499,1705009838421,-742.59,0.000378,3]
[311273501,1705009838430,-742.59,0.000378,3]
[311273503,1705009838439,-742.59,0.000378,3]
[311273505,1705009838448,-742.59,0.000378,3]
[311273507,1705009838457,-742.59,0.000378,3]
[311273509,1705009838466,-742.59,0.000378,3]
[311273511,1705009838475,-5375.81,0.00037808,2]
[311273513,1705009838484,-152.94059647,0.0003787,2]
[311273515,1705009838494,-1109.66,0.00037882,2]
[311273517,1705009838503,-263.49556138,0.0003789,2]
[311273519,1705009838514,-150.0,0.0003789,2]
[311273521,1705009838524,-2022.0,0.0003789,3]
[311273523,1705009838533,-555.40112,0.00037898,6]
[311273525,1705009838543,-150.0,0.00037899,2]
[311273527,1705009838553,-150.0,0.00037899,2]
[311273529,1705009838562,-151.55,0.000379,2]
[311273531,1705009838571,-33276.31830094,0.000379,3]
[311273550,1705009838741,-1588.43857689,0.000379,3]
[311273553,1705009838752,-898.15354925,0.000379,3]
[311273555,1705009838766,-367.06866657,0.000379,3]
[311273558,1705009838788,-4607.82526999,0.000379,3]
[311273561,1705009838800,-92836.32578696,0.000379,3]
[311273564,1705009838825,-446.92630179,0.00023998,2]
[311273566,1705009838834,-1085877.99628087,0.000379,3]
[311273568,1705009838843,-14303.65,0.000379,7]
[311273570,1705009838852,-6581.9,0.000379,7]
[311273572,1705009838861,-630251.060363,0.000379,2]
[311273574,1705009838871,-777.40112,0.00037998,6]
[311273576,1705009838880,-500.0,0.00038,60]
[311273578,1705009838889,-500.0,0.00038,30]
[311273580,1705009838898,-158367.04220359,0.00038,4]
[311273582,1705009838907,-1660.45577482,0.00038,4]
[311273584,1705009838917,-3060.04420173,0.00038,4]
[311273586,1705009838926,-155.0,0.00038,2]
[311273588,1705009838939,-184.0,0.00038,2]
[311273591,1705009838948,-300.0,0.00038,39]
[311273592,1705009838957,-48003.53576338,0.00038003,12]
[311273595,1705009838966,-6093.67387075,0.00038024,10]
[311273597,1705009838975,-10850.69898329,0.00038035,10]
[311273599,1705009838984,-5625.42885764,0.00038045,12]
[311273600,1705009838993,-50000.0,0.00038045,15]
[311273603,1705009839003,-555.40112,0.00038098,6]
[311273605,1705009839013,-3500.23,0.000381,7]
[311273607,1705009839022,-155.0,0.0003811,2]
[311273609,1705009839031,-155.6998557,0.0003816,7]
[311273610,1705009839040,-626.25,0.00038172,2]
[311273613,1705009839050,-777.40112,0.00038198,8]
[311273614,1705009839060,-150.0,0.0003823,2]
[311273617,1705009839069,-150.0,0.0003823,2]
[311273619,1705009839078,-8406.65,0.00038286,2]
[311273620,1705009839088,-555.40112,0.00038298,6]
[311273623,1705009839098,-651.19,0.00038352,2]
[311273625,1705009839108,-3703.55500812,0.00038355,11]
[311273627,1705009839117,-1750.58745688,0.00038356,30]
[311273629,1705009839126,-666.0,0.00038356,2]
[311273631,1705009839135,-500.0,0.00038356,2]
[311273633,1705009839145,-153.84,0.00038356,2]
[311273635,1705009839153,-3868.0,0.00038356,10]
[311273637,1705009839163,-21927.89,0.00038356,2]
[311273638,1705009839172,-1816.86,0.00038356,2]
[311273640,1705009839181,-155.6998557,0.00038368,7]
[311273642,1705009839191,-202.0,0.00038371,20]
[311273645,1705009839200,-777.40112,0.00038398,8]
[311273647,1705009839210,-8000.0,0.000384,2]
[311273649,1705009839219,-165.05,0.00038425,2]
[311273651,1705009839229,-555.40112,0.00038498,6]
[311273653,1705009839238,-488.89674087,0.000385,4]
[311273655,1705009839247,-14303.65,0.000385,7]
[311273657,1705009839257,-6581.9,0.000385,7]
[311273658,1705009839268,-777.40112,0.00038598,8]
[311273661,1705009839277,-2800.23,0.00038678,2]
[311273663,1705009839287,-18107.29,0.00038678,2]
[311273664,1705009839296,-5509.79,0.00038678,2]
[311273666,1705009839306,-555.40112,0.00038698,6]
[311273669,1705009839316,-444.54148582,0.00038767,2]
[311273671,1705009839326,-777.40112,0.00038798,8]
[311273672,1705009839335,-212.62608725,0.000388,16]
[311273675,1705009839346,-152.94059647,0.0003886,2]
[311273677,1705009839357,-150.0,0.0003889,2]
[311273679,1705009839366,-555.40112,0.00038898,6]
[311273681,1705009839375,-3500.23,0.000389,7]
[311273683,1705009839384,-281.73212903,0.0003898,2]
[311273685,1705009839393,-385.0,0.00038994,2]
[311273687,1705009839402,-524.754,0.00038994,2]
[311273689,1705009839411,-834.0,0.00038994,2]
[311273691,1705009839420,-1851.0,0.00038994,2]
[311273693,1705009839429,-944.0,0.00038994,2]
[311273695,1705009839438,-1234.0,0.00038994,2]
[311273697,1705009839447,-1251.0,0.00038994,2]
[311273699,1705009839456,-995.0,0.00038994,2]
[311273701,1705009839466,-512.67,0.00038994,2]
[311273703,1705009839475,-1930.0,0.00038994,2]
[311273705,1705009839484,-1139.0,0.00038994,2]
[311273707,1705009839493,-233.957,0.00038994,2]
[311273709,1705009839503,-318.0,0.00038994,2]
[311273711,1705009839513,-507.0,0.00038994,2]
[311273713,1705009839523,-880.0,0.00038994,2]
[311273715,1705009839532,-425.0,0.00038994,2]
[311273717,1705009839541,-4864.668,0.00038994,2]
[311273719,1705009839554,-214.0,0.00038994,2]
[311273721,1705009839563,-8080.0,0.00038994,2]
[311273723,1705009839572,-2269.0,0.00038994,2]
[311273725,1705009839581,-2900.0,0.00038994,2]
[311273727,1705009839590,-4167.0,0.00038994,2]
[311273729,1705009839599,-19673.0,0.00038994,2]
[311273731,1705009839608,-250.0,0.00038994,2]
[311273733,1705009839617,-150.425,0.00038994,2]
[311273735,1705009839626,-150.0,0.00038994,2]
[311273737,1705009839636,-150.0,0.00038994,2]
[311273739,1705009839645,-1028.0,0.00038994,2]
[311273741,1705009839655,-150.0,0.00038994,2]
[311273743,1705009839663,-150.208,0.00038994,2]
[311273745,1705009839672,-246.175,0.00038994,2]
[311273747,1705009839681,-777.40112,0.00038998,8]
[311273749,1705009839690,-151.0,0.00039,7]
[311273751,1705009839698,-151.0,0.00039,7]
[311273753,1705009839707,-1427.43973993,0.00039,2]
[311273755,1705009839716,-151.0,0.00039,7]
[311273757,1705009839726,-900.0,0.00039,3]
[311273759,1705009839735,-300.0,0.00039,40]
[311273761,1705009839744,-157.49782165,0.00039053,7]
[311273763,1705009839753,-156.47082018,0.00039062,7]
[311273765,1705009839763,-202.0,0.00039092,21]
[311273767,1705009839773,-555.40112,0.00039098,6]
[311273769,1705009839782,-626.25,0.00039151,2]
[311273771,1705009839791,-777.40112,0.00039198,8]
[311273773,1705009839800,-14303.65,0.000392,7]
[311273775,1705009839809,-6581.9,0.000392,7]
[311273777,1705009839819,-3703.55500812,0.00039218,12]
[311273779,1705009839828,-389.58,0.0003926,2]
[311273781,1705009839837,-155.6998557,0.00039261,7]
[311273783,1705009839847,-153.84,0.00039269,2]
[311273785,1705009839856,-555.40112,0.00039298,6]
[311273787,1705009839865,-1178.31839914,0.00039374,2]
[311273789,1705009839874,-777.40112,0.00039398,8]
[311273791,1705009839883,-742.59,0.000394,3]
[311273793,1705009839892,-742.59,0.000394,3]
[311273795,1705009839901,-742.59,0.000394,3]
[311273797,1705009839910,-742.59,0.000394,3]
[311273800,1705009839919,-742.59,0.000394,3]
[311273802,1705009839928,-742.59,0.000394,3]
[311273804,1705009839937,-742.59,0.000394,3]
[311273806,1705009839947,-742.59,0.000394,3]
[311273808,1705009839956,-742.59,0.000394,3]
[311273810,1705009839966,-742.59,0.000394,3]
[311273812,1705009839975,-742.59,0.000394,3]
[311273814,1705009839985,-742.59,0.000394,3]
[311273816,1705009839994,-742.59,0.000394,3]
[311273818,1705009840003,-742.59,0.000394,3]
[311273820,1705009840014,-742.59,0.000394,3]
[311273822,1705009840024,-742.59,0.000394,3]
[311273824,1705009840033,-742.59,0.000394,3]
[311273826,1705009840042,-742.59,0.000394,3]
[311273828,1705009840051,-742.59,0.000394,3]
[311273830,1705009840061,-742.59,0.000394,3]
[311273832,1705009840070,-155.0,0.0003948,2]
[311273835,1705009840079,-555.40112,0.00039498,6]
[311273837,1705009840089,-160.04902526,0.00039499,7]
[311273840,1705009840098,-200.0,0.000395,15]
[311273843,1705009840107,-915.19,0.00039555,2]
[311273845,1705009840116,-155.6998557,0.00039571,7]
[311273848,1705009840125,-777.40112,0.00039598,8]
[311273851,1705009840134,-3500.23,0.000396,7]
[311273854,1705009840144,-651.19,0.0003963,2]
[311273855,1705009840153,-1044.56093257,0.0003965,2]
[311273857,1705009840162,-1076.70058318,0.0003965,2]
[311273859,1705009840172,-800.0,0.0003968,10]
[311273860,1705009840181,-555.40112,0.00039698,6]
[311273862,1705009840190,-5040.0,0.000397,2]
[311273864,1705009840200,-158.73998173,0.00039735,2]
[311273866,1705009840209,-777.40112,0.00039798,8]
[311273867,1705009840218,-14303.65,0.000398,7]
[311273869,1705009840228,-6581.9,0.000398,7]
[311273871,1705009840237,-202.0,0.00039813,23]
[311273874,1705009840246,-152.94059647,0.0003985,6]
[311273875,1705009840255,-1000.0,0.00039866,2]
[311273878,1705009840266,-150.0,0.0003989,2]
[311273881,1705009840275,-555.40112,0.00039898,6]
[311273884,1705009840284,-300.00490516,0.000399,4]
[311273886,1705009840293,-155.6998557,0.00039935,7]
[311273889,1705009840303,-450.0,0.0003998,3]
[311273892,1705009840312,-495.91201867,0.0003998,3]
[311273895,1705009840322,-214.46,0.0003999,10]
[311273897,1705009840331,-178.72,0.00039997,10]
[311273900,1705009840339,-777.40112,0.00039998,8]
[311273903,1705009840348,-18767.49045081,0.0004,30]
[311273905,1705009840357,-208.19545222,0.0004,3]
[311273908,1705009840366,-151.0,0.0004,7]
[311273911,1705009840376,-39672.6474164,0.0004,4]
[311273914,1705009840385,-22008.0721351,0.0004,4]
[311273917,1705009840394,-151.0,0.0004,7]
[311273920,1705009840403,-151.0,0.0004,7]
[311273923,1705009840412,-956.60549549,0.0004,2]
[311273926,1705009840421,-18133.0010694,0.0004,10]
[311273929,1705009840430,-155.0,0.0004,2]
[311273932,1705009840441,-281.29798373,0.0004,13]
[311273934,1705009840450,-13920.49611954,0.0004,4]
[311273937,1705009840459,-6816.450089,0.0004,2]
[311273940,1705009840468,-5000.0,0.0004,14]
[311273942,1705009840477,-300.0,0.0004,41]
[311273945,1705009840486,-1380.0,0.0004,2]
[311273948,1705009840495,-3390.0,0.0004,2]
[311273951,1705009840504,-150.18,0.0004,2]
[311273953,1705009840514,-150.18,0.0004,2]
[311273955,1705009840523,-150.18,0.0004,2]
[311273957,1705009840532,-150.18,0.0004,2]
[311273959,1705009840540,-150.18,0.0004,2]
[311273961,1705009840549,-150.18,0.0004,2]
[311273964,1705009840559,-150.18,0.0004,2]
[311273967,1705009840568,-150.18,0.0004,2]
[311273970,1705009840577,-150.18,0.0004,2]
[311273973,1705009840586,-150.18,0.0004,2]
[311273976,1705009840595,-150.18,0.0004,2]
[311273978,1705009840604,-150.18,0.0004,2]
[311273980,1705009840613,-150.18,0.0004,2]
[311273982,1705009840623,-150.18,0.0004,2]
[311273984,1705009840635,-150.18,0.0004,2]
[311273986,1705009840643,-150.18,0.0004,2]
[311273988,1705009840653,-150.18,0.0004,2]
[311273990,1705009840662,-150.18,0.0004,2]
[311273992,1705009840671,-150.18,0.0004,2]
[311273994,1705009840680,-150.18,0.0004,2]
[311273996,1705009840690,-150.18,0.0004,2]
[311273998,1705009840700,-150.18,0.0004,2]
[311274000,1705009840709,-150.18,0.0004,2]
[311274002,1705009840719,-150.18,0.0004,2]
[311274004,1705009840727,-150.18,0.0004,2]
[311274006,1705009840736,-150.18,0.0004,2]
[311274008,1705009840745,-150.18,0.0004,2]
[311274010,1705009840754,-150.18,0.0004,2]
[311274012,1705009840764,-150.18,0.0004,2]
[311274014,1705009840773,-150.18,0.0004,2]
[311274016,1705009840782,-1000.0,0.0004,2]
[311274018,1705009840791,-150.18,0.0004,2]
[311274020,1705009840801,-150.18,0.0004,2]
[311274022,1705009840810,-150.18,0.0004,2]
[311274024,1705009840819,-150.18,0.0004,2]
[311274026,1705009840828,-150.18,0.0004,2]
[311274028,1705009840837,-150.18,0.0004,2]
[311274030,1705009840847,-150.18,0.0004,2]
[311274032,1705009840856,-150.18,0.0004,2]
[311274034,1705009840865,-150.18,0.0004,2]
[311274036,1705009840874,-150.18,0.0004,2]
[311274038,1705009840883,-150.18,0.0004,2]
[311274040,1705009840892,-150.18,0.0004,2]
[311274042,1705009840901,-150.18,0.0004,2]
[311274044,1705009840910,-150.18,0.0004,2]
[311274046,1705009840920,-150.18,0.0004,2]
[311274048,1705009840929,-150.18,0.0004,2]
[311274050,1705009840939,-150.18,0.0004,2]
[311274053,1705009840948,-150.18,0.0004,2]
[311274055,1705009840958,-150.18,0.0004,2]
[311274057,1705009840967,-150.18,0.0004,2]
[311274059,1705009840976,-150.18,0.0004,2]
[311274061,1705009840986,-150.18,0.0004,2]
[311274063,1705009840996,-150.18,0.0004,2]
[311274064,1705009841005,-150.18,0.0004,2]
[311274066,1705009841016,-150.18,0.0004,2]
[311274069,1705009841025,-150.18,0.0004,2]
[311274070,1705009841035,-150.18,0.0004,2]
[311274072,1705009841044,-150.18,0.0004,2]
[311274075,1705009841054,-150.18,0.0004,2]
[311274077,1705009841064,-150.18,0.0004,2]
[311274078,1705009841073,-150.18,0.0004,2]
[311274081,1705009841082,-150.18,0.0004,2]
[311274083,1705009841091,-150.18,0.0004,2]
[311274085,1705009841100,-150.18,0.0004,2]
[311274086,1705009841110,-150.18,0.0004,2]
[311274088,1705009841119,-150.18,0.0004,2]
[311274090,1705009841128,-150.18,0.0004,2]
[311274093,1705009841138,-150.18,0.0004,2]
[311274095,1705009841147,-150.18,0.0004,2]
[311274097,1705009841156,-150.18,0.0004,2]
[311274099,1705009841166,-150.18,0.0004,2]
[311274101,1705009841175,-150.18,0.0004,2]
[311274103,1705009841184,-150.18,0.0004,2]
[311274105,1705009841194,-150.18,0.0004,2]
[311274107,1705009841202,-150.18,0.0004,2]
[311274109,1705009841212,-150.18,0.0004,2]
[311274111,1705009841221,-150.18,0.0004,2]
[311274113,1705009841230,-150.18,0.0004,2]
[311274115,1705009841239,-150.0,0.00040007,2]
[311274117,1705009841248,-3703.55500812,0.00040082,14]
[311274119,1705009841258,-555.40112,0.00040098,6]
[311274121,1705009841268,-256.74226348,0.00040107,12]
[311274123,1705009841279,-626.25,0.00040129,2]
[311274125,1705009841288,-152.0,0.00040164,3]
[311274127,1705009841297,-153.84,0.00040183,2]
[311274129,1705009841306,-777.40112,0.00040198,8]
[311274131,1705009841315,-218.68581734,0.0004029,30]
[311274133,1705009841323,-555.40112,0.00040298,6]
[311274135,1705009841332,-150.0,0.00040299,3]
[311274137,1705009841341,-150.0,0.00040299,3]
[311274138,1705009841350,-3500.23,0.000403,7]
[311274141,1705009841360,-989.5,0.00040349,15]
[311274143,1705009841369,-777.40112,0.00040398,8]
[311274145,1705009841378,-155.6998557,0.00040434,30]
[311274146,1705009841387,-555.40112,0.00040498,6]
[311274148,1705009841396,-6560.99503908,0.000405,7]
[311274150,1705009841406,-531.0,0.000405,2]
[311274152,1705009841415,-343.0,0.000405,30]
[311274155,1705009841424,-863.0,0.000405,30]
[311274156,1705009841434,-202.0,0.00040534,24]
[311274158,1705009841443,-200.0,0.00040563,20]
[311274161,1705009841452,-800.0,0.00040563,10]
[311274162,1705009841461,-777.40112,0.00040598,8]
[311274165,1705009841470,-550.69445826,0.0004069,4]
[311274167,1705009841479,-555.40112,0.00040698,6]
[311274169,1705009841488,-389.58,0.00040733,2]
[311274171,1705009841497,-155.6998557,0.00040765,30]
[311274173,1705009841507,-777.40112,0.00040798,8]
[311274175,1705009841520,-152.94059647,0.00040841,9]
[311274177,1705009841529,-1000.0,0.00040845,2]
[311274179,1705009841541,-155.0,0.0004085,2]
[311274181,1705009841550,-150.0,0.0004089,2]
[311274183,1705009841559,-555.40112,0.00040898,6]
[311274185,1705009841567,-3703.55500812,0.00040945,15]
[311274187,1705009841577,-151.0,0.00040949,2]
[311274189,1705009841585,-250.49088,0.00040949,2]
[311274191,1705009841594,-1178.31839914,0.00040953,5]
[311274193,1705009841604,-777.40112,0.00040998,8]
[311274195,1705009841612,-3500.23,0.00041,7]
[311274197,1705009841622,-950.0,0.00041,3]
[311274199,1705009841631,-300.0,0.00041,42]
[311274201,1705009841640,-8000.0,0.00041,4]
[311274203,1705009841649,-152.0,0.00041,14]
[311274220,1705009841806,-164.43,0.00041029,2]
[311274223,1705009841818,-893.61,0.0004109,10]
[311274225,1705009841828,-153.84,0.00041096,2]
[311274227,1705009841837,-180.0,0.00041096,2]
[311274229,1705009841846,-150.0,0.00041096,2]
[311274231,1705009841855,-151.55,0.00041096,2]
[311274233,1705009841865,-555.40112,0.00041098,8]
[311274235,1705009841877,-742.59,0.000411,4]
[311274237,1705009841887,-742.59,0.000411,4]
[311274239,1705009841896,-742.59,0.000411,4]
[311274241,1705009841905,-742.59,0.000411,4]
[311274243,1705009841914,-742.59,0.000411,4]
[311274245,1705009841923,-742.59,0.000411,4]
[311274247,1705009841933,-742.59,0.000411,4]
[311274249,1705009841942,-742.59,0.000411,4]
[311274251,1705009841951,-742.59,0.000411,4]
[311274253,1705009841961,-742.59,0.000411,4]
[311274256,1705009841970,-742.59,0.000411,4]
[311274258,1705009841979,-742.59,0.000411,4]
[311274260,1705009841988,-742.59,0.000411,4]
[311274262,1705009841997,-742.59,0.000411,4]
[311274264,1705009842006,-742.59,0.000411,4]
[311274266,1705009842019,-742.59,0.000411,4]
[311274269,1705009842029,-742.59,0.000411,4]
[311274270,1705009842038,-742.59,0.000411,4]
[311274273,1705009842048,-742.59,0.000411,4]
[311274275,1705009842057,-742.59,0.000411,4]
[311274276,1705009842068,-5040.0,0.000411,5]
[311274278,1705009842077,-777.40112,0.00041198,10]
[311274281,1705009842087,-1000.0,0.000412,7]
[311274283,1705009842096,-202.0,0.00041255,25]
[311274285,1705009842106,-555.40112,0.00041298,8]
[311274286,1705009842115,-3000.0,0.0004136,8]
[311274288,1705009842124,-150.3911824,0.00041393,30]
[311274291,1705009842133,-777.40112,0.00041398,10]
[311274293,1705009842143,-1288.53657583,0.000414,2]
[311274294,1705009842152,-200.0,0.00041445,20]
[311274297,1705009842161,-800.0,0.00041445,20]
[311274299,1705009842171,-222.11687264,0.00041457,2]
[311274300,1705009842180,-150.0,0.0004147,15]
[311274303,1705009842190,-150.0,0.00041471,2]
[311274305,1705009842200,-150.0,0.00041471,2]
[311274307,1705009842209,-150.0,0.00041471,2]
[311274309,1705009842218,-150.0,0.00041471,2]
[311274311,1705009842228,-150.0,0.00041471,2]
[311274313,1705009842236,-150.0,0.00041471,2]
[311274315,1705009842246,-150.0,0.00041471,2]
[311274317,1705009842255,-150.0,0.00041471,2]
[311274319,1705009842266,-150.0,0.00041471,2]
[311274321,1705009842275,-150.0,0.00041471,2]
[311274323,1705009842284,-150.0,0.00041471,2]
[311274325,1705009842294,-150.0,0.00041471,2]
[311274327,1705009842303,-555.40112,0.00041498,8]
[311274329,1705009842313,-150.0,0.00041499,3]
[311274331,1705009842322,-150.0,0.00041499,3]
[311274333,1705009842332,-5000.0,0.000415,21]
[311274335,1705009842342,-777.40112,0.00041598,10]
[311274337,1705009842351,-302.0,0.00041637,4]
[311274339,1705009842361,-160.50739785,0.00041684,30]
[311274341,1705009842370,-555.40112,0.00041698,8]
[311274343,1705009842379,-14303.65,0.000417,7]
[311274345,1705009842389,-6581.9,0.000417,7]
[311274347,1705009842398,-150.0,0.000417,17]
[311274349,1705009842407,-1267.4543112,0.000417,5]
[311274351,1705009842416,-3291.64435569,0.00041779,2]
[311274353,1705009842426,-666.0,0.0004178,2]
[311274355,1705009842435,-155.6998557,0.0004179,30]
[311274357,1705009842445,-1520.0,0.0004179,3]
[311274359,1705009842454,-777.40112,0.00041798,10]
[311274361,1705009842464,-3500.23,0.000418,7]
[311274363,1705009842473,-150.0,0.000418,13]
[311274365,1705009842482,-500.0,0.000418,5]
[311274368,1705009842491,-1000.0,0.000418,7]
[311274371,1705009842500,-3703.55500812,0.00041809,16]
[311274374,1705009842510,-915.19,0.00041819,2]
[311274377,1705009842520,-145311.51659189,0.00041827,30]
[311274380,1705009842529,-1820.77,0.0004183,5]
[311274383,1705009842539,-152.94059647,0.00041831,13]
[311274387,1705009842548,-784.5019733,0.00041832,2]
[311274391,1705009842557,-3055.6912152,0.00041832,2]
[311274394,1705009842566,-5708.5813703,0.00041832,2]
[311274397,1705009842576,-8919.8920163,0.00041832,2]
[311274400,1705009842585,-12095.2211046,0.00041832,2]
[311274403,1705009842595,-2284.5553532,0.00041832,2]
[311274407,1705009842605,-151.0,0.00041836,14]
[311274411,1705009842614,-151.0,0.00041836,14]
[311274412,1705009842626,-151.0,0.00041836,14]
[311274414,1705009842635,-151.0,0.00041836,14]
[311274416,1705009842644,-2775.84936227,0.00041836,30]
[311274441,1705009842951,-197224.15063773,0.00041836,30]
[311274443,1705009842960,-146899.61449436,0.00041844,30]
[311274445,1705009842971,-53100.38550564,0.00041844,30]
[311274447,1705009842981,-338.549714,0.00041844,14]
[311274449,1705009842989,-338.549714,0.00041844,14]
[311274451,1705009842999,-151.0,0.00041844,14]
[311274453,1705009843009,-842.484779,0.00041844,14]
[311274455,1705009843019,-842.484779,0.00041844,14]
[311274457,1705009843028,-151.0,0.00041844,14]
[311274459,1705009843037,-151.0,0.00041844,14]
[311274461,1705009843046,-151.0,0.00041844,14]
[311274464,1705009843056,-243.200752,0.00041844,14]
[311274466,1705009843065,-27999.2378531,0.00041861,2]
[311274467,1705009843075,-150.0,0.0004189,60]
[311274470,1705009843084,-1000.0,0.00041893,4]
[311274473,1705009843094,-555.40112,0.00041898,8]
[311274477,1705009843103,-1056.59557652,0.000419,2]